bitfinex/quotes_ETHUSD_20250131
["timestamp","ask_amount","ask_price","bid_price","bid_amount"]
[1738348198339,3.4673495,3348.0,3347.9,3.50653]
[1738348199361,0.4804995,3348.0,3347.9,3.50653]
[1738348200054,0.597258,3348.6,3348.1,2.98676]
[1738348200195,2.98615,3348.8,3347.9,3.50653]
[1738348200399,0.015,3348.9,3347.9,3.50653]
[1738348200630,2.9866,3348.3,3347.9,3.50653]
[1738348201162,0.7345617,3348.8,3347.9,3.50653]
[1738348201163,2.98679,3348.1,3347.9,3.50653]
[1738348201367,0.0075,3348.6,3347.9,3.50653]
[1738348201498,2.98685,3348.0,3347.9,3.50653]
[1738348201944,2.98651,3348.4,3347.9,3.50653]
[1738348202112,3.285161,3348.4,3347.9,3.50653]
[1738348202530,3.1707717,3348.8,3348.1,2.98668]
[1738348202704,3.1707717,3348.8,3348.1,3.74558]
[1738348202897,3.1707717,3348.8,3348.1,0.7589]
[1738348203236,1.83061698,3349.0,3348.1,0.7589]
[1738348203437,1.83061698,3349.0,3348.4,2.98642]
[1738348203823,4.81662698,3349.0,3348.3,2.98657]
[1738348204048,1.83061698,3349.0,3348.1,0.7589]
[1738348204396,0.0075,3348.9,3348.1,0.7589]
[1738348204602,2.9863,3348.7,3348.1,0.7589]
[1738348204994,3.4685467,3348.8,3348.1,3.74561]
[1738348205111,2.98611,3348.9,3348.1,3.74561]
[1738348205315,1.83061698,3349.0,3348.4,2.98644]
[1738348205611,1.83061698,3349.0,3348.5,2.98639]
[1738348205810,1.83061698,3349.0,3348.6,2.98624]
[1738348206015,1.83061698,3349.0,3348.4,2.98644]
[1738348206443,4.81659698,3349.0,3348.4,2.98644]
[1738348206742,2.98598,3349.0,3348.4,2.98644]
[1738348206945,2.98633,3348.6,3348.1,0.7589]
[1738348207148,0.597183,3349.0,3347.9,3.50653]
[1738348207149,0.0075,3348.7,3347.9,3.50653]
[1738348207346,2.98685,3348.0,3347.9,3.50653]
[1738348207845,2.98675,3348.2,3347.9,3.50653]
[1738348208048,3.0075,3348.9,3347.9,3.50653]
[1738348208203,2.98667,3348.3,3347.9,3.50653]
[1738348208731,2.9868,3348.1,3347.9,3.50653]
[1738348209129,2.98632,3348.6,3347.9,3.50653]
[1738348209428,2.98685,3348.0,3347.9,3.50653]
[1738348210185,2.99435,3348.0,3347.9,3.50653]
[1738348210331,3.591533,3348.0,3347.9,3.50653]
[1738348210653,3.599033,3348.0,3347.9,3.50653]
[1738348211174,3.599033,3348.0,3346.6,0.7526]
[1738348211175,2.98757,3347.2,3346.4,0.05]
[1738348211331,2.98784,3346.9,3346.4,0.05]
[1738348211531,2.98779,3347.0,3346.4,0.05]
[1738348212139,2.98757,3347.2,3346.4,0.05]
[1738348212339,2.98748,3347.3,3346.6,2.98806]
[1738348212541,0.224,3347.6,3346.4,0.07987948]
[1738348212870,2.98713,3347.7,3346.9,3.76807]
[1738348213233,2.98696,3347.9,3346.9,3.76807]
[1738348213469,2.98722,3347.6,3346.9,3.76807]
[1738348214066,2.98704,3347.8,3346.9,0.7803]
[1738348214271,2.98696,3347.9,3347.0,2.98769]
[1738348214473,2.98656,3348.4,3347.1,0.675587]
[1738348214778,4.04052788,3348.7,3347.1,0.675587]
[1738348214939,2.98704,3347.8,3347.2,2.98755]
[1738348215134,2.98722,3347.6,3346.9,3.7681]
[1738348215334,1.83061698,3347.9,3347.3,2.98739]
[1738348215572,1.83061698,3347.9,3347.7,2.98706]
[1738348216150,1.83061698,3347.9,3347.8,2.98703]
[1738348216875,1.83061698,3347.9,3347.1,0.85106881]
[1738348217047,1.83061698,3347.9,3347.6,2.98714]
[1738348217251,1.83061698,3347.9,3347.8,2.98703]
[1738348217846,1.83061698,3347.9,3347.6,2.98713]
[1738348218057,1.83061698,3347.9,3347.7,2.98706]
[1738348218271,1.83061698,3347.9,3347.4,2.98736]
[1738348218272,1.83061698,3347.9,3347.5,2.98725]
[1738348218454,1.83061698,3347.9,3347.6,2.9872]
[1738348218979,1.83061698,3347.9,3347.5,2.98729]
[1738348219275,1.83061698,3347.9,3347.8,2.98703]
[1738348219636,2.98636,3348.6,3347.9,2.98692]
[1738348219835,2.98636,3348.6,3347.8,2.98703]
[1738348219836,2.98631,3348.7,3348.0,2.98679]
[1738348220069,2.98631,3348.7,3348.1,2.9867]
[1738348220379,1.83061698,3348.8,3348.1,2.98676]
[1738348220676,2.98642,3348.5,3347.8,2.98697]
[1738348220889,3.4909797,3348.7,3348.0,2.98685]
[1738348221187,0.5047197,3348.7,3347.2,0.43415967]
[1738348221340,2.98663,3348.3,3347.6,2.98719]
[1738348221546,2.98663,3348.3,3347.6,2.98718]
[1738348221851,2.98663,3348.3,3347.7,2.9871]
[1738348222052,2.98663,3348.3,3347.5,2.98725]
[1738348222249,2.98671,3348.2,3347.5,2.98725]
[1738348222439,2.98663,3348.3,3347.7,2.98712]
[1738348222642,2.9868,3348.1,3347.5,2.98725]
[1738348223349,0.5973,3348.3,3347.2,2.98749]
[1738348223559,1.83811698,3349.0,3347.1,0.8212]
[1738348223560,0.0075,3348.5,3347.1,0.8212]
[1738348223889,2.98713,3347.7,3347.1,2.98764]
[1738348224385,2.98721,3347.6,3346.9,2.98777]
[1738348224882,2.98721,3347.6,3347.0,2.98774]
[1738348225048,2.98713,3347.7,3347.0,2.98774]
[1738348225383,3.49802788,3348.3,3347.2,2.98755]
[1738348225384,2.98695,3347.9,3347.2,2.98755]
[1738348225555,2.98724,3347.6,3347.0,2.98773]
[1738348225759,2.98724,3347.6,3346.8,0.8234]
[1738348225960,2.98724,3347.6,3347.0,2.98769]
[1738348226484,2.98724,3347.6,3346.8,3.81127]
[1738348226655,2.98739,3347.4,3346.8,3.81127]
[1738348226856,2.98706,3347.8,3346.9,3.01770798]
[1738348227059,0.597375,3347.9,3346.8,1.503337]
[1738348227404,2.9871,3347.8,3347.2,2.98751]
[1738348227750,2.9871,3347.8,3347.0,2.98768]
[1738348227942,2.9871,3347.8,3347.1,2.98758]
[1738348228147,2.9871,3347.8,3347.0,2.9877]
[1738348228347,2.9871,3347.8,3347.1,2.98763]
[1738348228686,3.6442465,3347.8,3347.1,2.98759]
[1738348228892,4.81727698,3348.3,3347.5,2.98722]
[1738348229188,2.98682,3348.1,3347.5,2.98722]
[1738348229487,2.98685,3348.0,3347.5,2.98722]
[1738348229645,3.7672787,3348.0,3347.4,2.98737]
[1738348229851,0.7804287,3348.0,3347.5,2.98728]
[1738348230051,2.98687,3348.0,3347.5,2.98728]
[1738348230289,2.98687,3348.0,3347.3,2.98741]
[1738348230471,4.81714698,3348.4,3347.8,2.987]
[1738348230673,2.98659,3348.3,3347.8,2.987]
[1738348230983,2.98669,3348.2,3347.7,2.98711]
[1738348231187,2.98659,3348.3,3347.7,2.98711]
[1738348231399,1.83061698,3348.4,3347.3,0.8134]
[1738348231572,2.98664,3348.3,3347.7,2.9871]
[1738348233870,2.98726,3347.6,3347.0,2.98773]
[1738348234068,2.98736,3347.5,3346.9,0.795]
[1738348234300,2.98715,3347.7,3347.0,2.98768]
[1738348234586,2.98727,3347.6,3347.0,2.98768]
[1738348235000,2.98715,3347.7,3347.0,2.98768]
[1738348235162,2.98722,3347.6,3347.0,2.98773]
[1738348235695,3.285865,3347.7,3346.9,0.795]
[1738348235900,2.98736,3347.5,3347.0,2.98773]
[1738348236400,2.98747,3347.4,3346.9,0.795]
[1738348236575,2.98726,3347.6,3347.0,2.98769]
[1738348237358,2.98756,3347.3,3346.7,2.98797]
[1738348238656,2.98739,3347.4,3346.4,0.05]
[1738348238864,2.98791,3346.9,3346.4,0.05]
[1738348239160,2.98819,3346.5,3346.4,0.05]
[1738348240699,2.99569,3346.5,3346.4,0.05]
[1738348241982,3.00319,3346.5,3346.4,0.05]
[1738348242314,2.99569,3346.5,3346.4,0.05]
[1738348242520,2.98755,3347.3,3346.4,0.05]
[1738348242730,0.218,3347.4,3346.6,0.7579]
[1738348242890,0.218,3347.4,3347.1,2.98758]
[1738348243092,0.218,3347.4,3346.8,2.98784]
[1738348243413,0.218,3347.4,3347.2,2.98756]
[1738348243614,0.218,3347.4,3347.0,2.9877]
[1738348243792,0.218,3347.4,3347.1,2.98761]
[1738348243993,1.83061698,3347.5,3347.2,2.98756]
[1738348244187,1.83061698,3347.5,3347.2,2.98752]
[1738348244418,1.83061698,3347.5,3346.6,0.7579]
[1738348244729,1.83061698,3347.5,3346.7,2.98801]
[1738348245044,2.98689,3348.0,3347.1,2.98757]
[1738348245196,0.69328139,3348.2,3346.8,0.374591]
[1738348245197,2.98695,3347.9,3347.3,2.98744]
[1738348245397,0.0075,3348.1,3346.9,2.98782]
[1738348245650,2.98734,3347.5,3346.9,2.98782]
[1738348245953,2.98734,3347.5,3346.7,2.98801]
[1738348245954,2.98748,3347.3,3346.7,2.98801]
[1738348246111,2.98779,3347.0,3346.4,3.03826]
[1738348246288,2.98785,3346.9,3346.4,0.05]
[1738348246906,2.98804,3346.7,3346.4,0.05]
[1738348247520,2.98816,3346.6,3346.4,0.05]
[1738348247827,2.98804,3346.7,3346.4,0.05]
[1738348248802,2.98785,3346.9,3346.4,0.05]
[1738348249208,2.98794,3346.8,3346.4,0.05]
[1738348249734,2.98803,3346.7,3346.4,0.05]
[1738348250271,3.585618,3346.7,3346.4,0.05]
[1738348250761,0.597588,3346.7,3346.4,0.05]
[1738348251059,2.98807,3346.7,3346.4,0.05]
[1738348251772,1.82797976,3346.8,3346.4,0.05]
[1738348252066,1.82797976,3346.8,3346.4,0.8635]
[1738348252263,1.82797976,3346.8,3346.4,3.8517]
[1738348252582,1.82797976,3346.8,3346.5,2.98817]
[1738348252775,1.82797976,3346.8,3346.4,3.8517]
[1738348253366,1.82797976,3346.8,3346.5,2.98819]
[1738348253955,1.82797976,3346.8,3346.4,0.8635]
[1738348254473,2.98819,3346.5,3346.4,0.05]
[1738348254819,2.98803,3346.7,3346.4,0.05]
[1738348255023,2.98819,3346.5,3346.4,0.05]
[1738348255472,3.00319,3346.5,3346.4,0.05]
[1738348255764,2.99569,3346.5,3346.4,0.05]
[1738348256131,3.93561479,3346.5,3346.4,0.05]
[1738348257378,3.95061479,3346.5,3346.4,0.05]
[1738348257688,3.93561479,3346.5,3346.4,0.05]
[1738348257888,2.98819,3346.5,3346.4,0.05]
[1738348258184,2.98803,3346.7,3346.4,0.05]
[1738348258388,4.81587976,3346.9,3346.4,0.05]
[1738348258550,2.98808,3346.7,3346.4,0.05]
[1738348258750,1.82797976,3346.9,3346.4,3.0382]
[1738348259086,1.82797976,3346.9,3346.4,3.43708916]
[1738348259286,1.82797976,3346.9,3346.6,2.98807]
[1738348259888,2.98751,3347.3,3346.4,3.43713916]
[1738348259889,2.98751,3347.3,3346.4,0.44887916]
[1738348260035,2.98758,3347.2,3346.6,2.98804]
[1738348260238,2.98766,3347.1,3346.6,2.98804]
[1738348260455,2.98766,3347.1,3346.4,3.03826]
[1738348260788,2.98807,3346.7,3346.4,0.05]
[1738348260989,2.98812,3346.6,3346.4,0.05]
[1738348261152,2.98819,3346.5,3346.4,0.05]
[1738348262143,3.593321,3346.5,3346.4,0.05]
[1738348262689,3.585821,3346.5,3346.4,0.05]
[1738348262901,2.98819,3346.5,3346.4,0.05]
[1738348263801,3.00319,3346.5,3346.4,0.05]
[1738348264137,3.55319,3346.5,3346.4,0.05]
[1738348264585,3.76819,3346.5,3346.4,0.05]
[1738348265257,2.98846,3346.2,3346.1,1.6e-06]
[1738348265434,10.03648788,3346.2,3346.1,1.6e-06]
[1738348265952,9.48648788,3346.2,3346.1,1.6e-06]
[1738348266102,2.98836,3346.4,3346.1,1.6e-06]
[1738348266307,0.21779427,3346.5,3346.1,1.6e-06]
[1738348266826,0.21779427,3346.5,3346.3,2.98836]
[1738348267047,2.98793,3346.8,3346.2,2.98838]
[1738348267202,2.98777,3347.0,3346.2,2.98838]
[1738348267403,2.98748,3347.3,3346.2,2.98838]
[1738348267604,2.98808,3346.7,3346.1,3.36710176]
[1738348267854,0.015,3347.3,3346.2,0.41645018]
[1738348268060,2.98821,3346.5,3346.1,1.6e-06]
[1738348268208,0.0075,3346.4,3346.1,1.6e-06]
[1738348268402,2.98846,3346.2,3346.1,1.6e-06]
[1738348269149,3.21846,3346.2,3346.1,1.6e-06]
[1738348269445,10.62924788,3346.2,3346.1,1.6e-06]
[1738348269640,4.13122,3346.2,3346.1,1.6e-06]
[1738348269842,2.98825,3346.5,3346.1,1.6e-06]
[1738348270028,2.98842,3346.3,3346.1,1.6e-06]
[1738348270231,2.98846,3346.2,3346.1,1.6e-06]
[1738348271023,1.82583972,3346.6,3346.1,1.6e-06]
[1738348271217,1.82583972,3346.6,3346.1,2.9885416]
[1738348271424,2.98825,3346.5,3346.1,1.6e-06]
[1738348271749,2.98845,3346.3,3346.1,1.6e-06]
[1738348272261,1.82583972,3346.4,3346.1,1.6e-06]
[1738348272428,2.98846,3346.2,3346.1,1.6e-06]
[1738348274170,9.48648788,3346.2,3346.1,1.6e-06]
[1738348274305,9.7042574,3346.2,3346.1,1.6e-06]
[1738348274506,10.41659353,3346.2,3346.1,1.6e-06]
[1738348274812,0.21776952,3346.2,3346.1,1.6e-06]
[1738348275568,2.98846,3346.2,3346.1,1.6e-06]
[1738348276063,1.82583972,3346.3,3346.2,3.79456]
[1738348276278,1.82583972,3346.3,3346.1,1.6e-06]
[1738348276279,2.98846,3346.2,3346.1,1.6e-06]
[1738348276449,3.76871097,3346.2,3346.1,1.6e-06]
[1738348276633,2.98846,3346.2,3346.1,1.6e-06]
[1738348277171,4.81429972,3346.2,3346.1,1.6e-06]
[1738348277459,1.82583972,3346.2,3346.1,1.6e-06]
[1738348277616,4.81429972,3346.2,3346.1,1.6e-06]
[1738348277964,4.82179972,3346.2,3346.1,1.6e-06]
[1738348278149,5.60281669,3346.2,3346.1,1.6e-06]
[1738348278513,5.59531669,3346.2,3346.1,1.6e-06]
[1738348278867,12.10084457,3346.2,3346.1,1.6e-06]
[1738348279162,12.65084457,3346.2,3346.1,1.6e-06]
[1738348279744,12.8056947,3346.2,3346.1,1.6e-06]
[1738348280264,2.98971,3344.8,3344.0,1.0]
[1738348280568,6.69523788,3344.8,3344.0,1.0]
[1738348280863,6.71023788,3344.8,3344.0,1.0]
[1738348281234,10.26023788,3344.8,3344.0,1.0]
[1738348281414,2.9906,3343.8,3343.7,1.00001]
[1738348282215,2.9905,3344.0,3343.7,1.00001]
[1738348282465,2.9906,3343.8,3343.7,1.00001]
[1738348283265,2.99007,3344.4,3343.7,1.00001]
[1738348283434,2.99044,3344.0,3343.7,1.00001]
[1738348283761,3.70552788,3344.8,3343.7,1.00001]
[1738348283762,2.99006,3344.5,3343.7,1.00001]
[1738348283975,2.99006,3344.5,3344.0,0.8257]
[1738348284476,2.99025,3344.3,3344.0,0.8257]
[1738348284845,0.215,3344.7,3344.0,0.8257]
[1738348285044,0.215,3344.7,3343.7,3.9907]
[1738348285045,0.565,3344.6,3343.7,1.00001]
[1738348285370,2.99043,3344.0,3343.7,1.00001]
[1738348285574,2.9906,3343.9,3343.7,1.00001]
[1738348285929,2.9906,3343.8,3343.7,1.00001]
[1738348286122,2.99027,3344.2,3343.7,1.00001]
[1738348286338,2.99052,3343.9,3343.7,1.00001]
[1738348286572,2.99056,3343.9,3343.7,1.00001]
[1738348286960,2.9906,3343.8,3343.7,1.00001]
[1738348287487,3.596205,3343.8,3343.7,1.00001]
[1738348287723,4.153705,3343.8,3343.7,1.00001]
[1738348287865,2.99105,3343.3,3343.2,0.19686601]
[1738348289287,2.991,3343.4,3343.2,0.19686601]
[1738348289432,2.99105,3343.3,3343.2,0.19686601]
[1738348289778,0.7747,3343.3,3342.1,0.005]
[1738348289944,0.0075,3343.2,3342.2,2.992]
[1738348290150,2.99158,3342.8,3342.1,0.005]
[1738348290572,2.99169,3342.6,3342.1,0.005]
[1738348290764,2.99185,3342.5,3342.1,0.005]
[1738348290984,2.9918,3342.5,3342.1,0.005]
[1738348291166,2.99186,3342.4,3342.1,0.005]
[1738348291516,2.99175,3342.6,3342.1,0.005]
[1738348291793,2.9918,3342.5,3342.1,0.005]
[1738348292152,2.99182,3342.5,3342.1,0.005]
[1738348292506,2.99195,3342.3,3342.1,0.005]
[1738348292799,2.99204,3342.2,3342.1,0.005]
[1738348293347,3.76763,3342.4,3342.1,0.005]
[1738348293553,4.05059711,3345.9,3342.1,0.005]
[1738348293554,3.79512,3342.8,3342.1,0.005]
[1738348293747,2.99178,3342.5,3342.1,0.005]
[1738348294151,2.99187,3342.4,3342.1,0.005]
[1738348294347,2.99204,3342.2,3342.1,0.005]
[1738348295428,3.20989,3342.4,3342.1,0.005]
[1738348295712,2.99204,3342.2,3342.1,0.005]
[1738348296734,2.99193,3342.4,3342.1,0.005]
[1738348297304,2.99169,3342.6,3342.1,0.380015]
[1738348297489,2.99166,3342.7,3342.1,2.9971]
[1738348297691,0.7879,3343.4,3342.2,0.7511]
[1738348297895,2.99111,3343.3,3342.7,2.99154]
[1738348298120,2.99089,3343.5,3342.9,2.99139]
[1738348298286,2.99053,3343.9,3342.9,0.673408]
[1738348298492,5.02809572,3344.1,3343.4,0.7511]
[1738348298694,2.9906,3343.9,3343.4,0.7511]
[1738348298990,2.99043,3344.0,3343.4,0.7511]
[1738348299201,2.03769572,3344.1,3343.4,0.7511]
[1738348299403,1.81969572,3344.1,3343.4,0.7511]
[1738348299619,1.81969572,3344.1,3343.9,2.99044]
[1738348299798,1.81969572,3344.1,3343.7,2.99064]
[1738348300031,1.81969572,3344.1,3343.7,3.663899]
[1738348300237,2.99008,3344.4,3343.7,3.663899]
[1738348300432,2.99016,3344.3,3343.7,3.663899]
[1738348300633,5.3102236,3344.8,3343.7,3.663899]
[1738348300947,0.55282236,3344.7,3343.4,0.7511]
[1738348301136,4.26202788,3344.4,3343.4,0.7511]
[1738348301306,2.99059,3343.9,3343.4,0.7511]
[1738348301641,2.99072,3343.7,3343.4,0.7511]
[1738348302252,2.99105,3343.3,3342.8,0.7582]
[1738348302439,2.99143,3342.9,3342.4,0.7617]
[1738348302600,0.64815779,3343.3,3342.4,0.7617]
[1738348302601,2.99152,3342.8,3342.4,0.7617]
[1738348303149,2.99177,3342.5,3342.1,0.005]
[1738348303650,2.99204,3342.2,3342.1,0.005]
[1738348304001,0.7976,3343.0,3342.1,0.005]
[1738348304207,2.9916,3342.7,3342.1,0.005]
[1738348304632,2.99169,3342.6,3342.1,0.005]
[1738348304845,0.97989105,3343.0,3342.1,0.005]
[1738348305007,2.99204,3342.2,3342.1,0.005]
[1738348308405,2.99163,3342.7,3342.1,0.005]
[1738348308610,2.99174,3342.6,3342.1,0.005]
[1738348308809,2.99141,3342.9,3342.1,0.005]
[1738348309045,2.99204,3342.2,3342.1,0.005]
[1738348309246,3.590437,3342.2,3342.1,0.005]
[1738348309458,3.590437,3342.2,3342.1,0.03674653]
[1738348309623,2.99204,3342.2,3342.1,0.03674653]
[1738348310436,2.99169,3342.6,3342.1,0.03674653]
[1738348310763,4.81029572,3343.9,3342.2,3.82072]
[1738348310764,2.99151,3342.8,3342.2,3.82072]
[1738348310964,2.99151,3342.8,3342.2,0.8287]
[1738348310965,2.99161,3342.7,3342.2,0.8287]
[1738348311165,2.99161,3342.7,3342.3,0.03163949]
[1738348311369,2.99186,3342.4,3342.3,0.03163949]
[1738348311725,2.99202,3342.3,3342.1,0.005]
[1738348311930,2.99186,3342.4,3342.3,0.03184682]
[1738348312130,2.99186,3342.4,3342.1,0.005]
[1738348312131,2.99195,3342.3,3342.2,0.0318796]
[1738348312357,2.99204,3342.2,3342.1,0.005]
[1738348312868,2.99293,3341.2,3339.9,0.8312]
[1738348313038,0.7942,3341.7,3339.9,0.8312]
[1738348313039,2.9933,3340.8,3340.1,2.99389]
[1738348313238,2.99312,3341.0,3340.1,0.47012714]
[1738348313451,2.99326,3340.9,3340.1,2.99391]
[1738348313829,2.99303,3341.1,3340.0,2.99401]
[1738348314064,2.99303,3341.1,3340.3,2.99371]
[1738348314286,3.81337131,3341.1,3339.9,0.8312]
[1738348314488,2.9941,3339.9,3339.3,0.1704858]
[1738348314709,3.29351,3339.9,3339.3,0.1704858]
[1738348315415,4.09431,3339.9,3339.3,0.1704858]
[1738348315687,3.29351,3339.9,3339.3,0.1704858]
[1738348315857,2.99385,3340.2,3339.3,0.1704858]
[1738348316066,2.99367,3340.4,3339.7,0.7988]
[1738348316269,2.99354,3340.6,3339.8,3.24413]
[1738348316472,0.218,3340.8,3339.8,0.25]
[1738348316670,3.21133,3340.8,3339.9,2.99409]
[1738348316875,0.218,3340.8,3340.4,0.7957]
[1738348317272,3.21129,3340.8,3340.4,0.7957]
[1738348317495,2.99348,3340.6,3340.4,0.7957]
[1738348317701,3.81518,3340.6,3339.8,0.25]
[1738348318009,3.5441,3339.9,3339.8,0.25]
[1738348318171,4.197907,3339.9,3339.8,0.25]
[1738348319160,7.197907,3339.9,3339.8,0.25]
[1738348319371,8.007007,3339.9,3339.8,0.25]
[1738348319574,8.007007,3339.9,3339.8,1e-05]
[1738348320500,3.8032,3339.9,3339.8,1e-05]
[1738348320698,2.99397,3340.1,3339.8,1e-05]
[1738348320898,2.9941,3339.9,3339.8,1e-05]
[1738348321301,4.583,3339.9,3339.8,1e-05]
[1738348321891,4.362,3339.9,3339.8,1e-05]
[1738348322207,7.5755,3339.9,3339.8,1e-05]
[1738348322363,7.567,3339.9,3339.8,1e-05]
[1738348322701,4.78252376,3339.9,3339.8,1e-05]
[1738348323374,0.21552376,3339.9,3339.8,1e-05]
[1738348323878,0.22,3340.1,3339.8,1e-05]
[1738348324194,0.22,3340.1,3339.9,0.03941079]
[1738348324381,0.840744,3340.1,3339.9,0.02923196]
[1738348324577,0.817,3340.5,3339.9,0.02923196]
[1738348324804,0.22,3340.2,3339.9,0.02923196]
[1738348325107,7.35561,3340.0,3339.9,0.02923196]
[1738348325268,7.35561,3340.0,3339.8,1e-05]
[1738348325269,2.9941,3339.9,3339.8,1e-05]
[1738348325510,0.221,3339.9,3339.8,1e-05]
[1738348325714,0.70559713,3339.9,3339.8,1e-05]
[1738348326137,1.25459713,3339.9,3339.8,1e-05]
[1738348326948,3.81337131,3340.1,3339.8,1e-05]
[1738348326949,4.03437131,3340.1,3339.8,1e-05]
[1738348327127,0.221,3340.1,3339.8,1e-05]
[1738348327845,4.03437131,3340.7,3339.8,1e-05]
[1738348328019,3.81337131,3340.7,3339.8,1e-05]
[1738348328209,0.221,3340.6,3339.8,1e-05]
[1738348328408,0.55,3340.4,3339.8,1e-05]
[1738348329517,0.40343713,3340.5,3339.8,1e-05]
[1738348329711,0.221,3340.6,3339.8,1e-05]
[1738348329910,0.55,3340.5,3339.8,1e-05]
[1738348330142,0.22,3340.6,3339.8,1e-05]
[1738348330372,3.81337131,3339.9,3339.8,1e-05]
[1738348330913,4.36337131,3339.9,3339.8,1e-05]
[1738348331133,4.79970844,3339.9,3339.8,1e-05]
[1738348331739,5.59730844,3339.9,3339.8,1e-05]
[1738348333120,0.22,3340.3,3339.8,1e-05]
[1738348333356,3.81337131,3339.9,3339.8,1e-05]
[1738348334218,4.03337131,3339.9,3339.8,1e-05]
[1738348334815,4.58337131,3339.9,3339.8,1e-05]
[1738348335850,3.81337131,3339.9,3339.8,1e-05]
[1738348336152,8.04590844,3339.9,3339.8,1e-05]
[1738348336353,8.06090844,3339.9,3339.8,1e-05]
[1738348336530,8.83180844,3339.9,3339.8,1e-05]
[1738348336936,9.04744114,3339.9,3339.8,1e-05]
[1738348339920,0.0075,3339.4,3339.3,0.1704858]
[1738348340229,7.64560131,3339.4,3339.3,0.1704858]
[1738348340848,8.41123401,3339.4,3339.3,0.1704858]
[1738348342727,8.1140274,3339.4,3339.3,0.1704858]
[1738348343151,0.2156327,3339.4,3339.3,0.1704858]
[1738348343678,0.2156327,3339.4,3339.3,0.19883581]
[1738348344127,0.2156327,3339.4,3339.3,0.97943581]
[1738348344865,0.2156327,3339.7,3339.3,0.97943581]
[1738348345724,3.5161647,3339.4,3339.3,0.97943581]
[1738348346154,3.5161647,3339.4,3339.3,0.19883581]
[1738348347565,3.7317974,3339.4,3339.3,0.19883581]
[1738348347761,0.2156327,3339.4,3339.3,0.19883581]
[1738348348167,3.7317974,3339.4,3339.3,0.19883581]
[1738348348473,4.65497714,3339.4,3339.3,0.19883581]
[1738348348772,4.65497714,3339.4,3339.3,0.1704858]
[1738348349266,0.2156327,3339.4,3339.3,0.9465858]
[1738348349674,0.2156327,3339.4,3339.3,0.97712104]
[1738348350925,0.2156327,3340.4,3339.4,0.8256]
[1738348351527,3.5161647,3340.1,3339.5,0.03014101]
[1738348351765,3.5161647,3339.7,3339.3,0.1704858]
[1738348352146,0.42751647,3340.0,3339.3,0.1704858]
[1738348352353,3.5161647,3340.1,3339.4,0.7964]
[1738348352876,0.2156327,3339.6,3339.4,0.7964]
[1738348354044,0.2156327,3340.4,3339.4,0.7964]
[1738348354466,0.2156327,3340.4,3339.4,0.7464]
[1738348355768,3.5161647,3340.0,3339.4,0.7464]
[1738348355975,0.35161647,3339.9,3339.4,0.7464]
[1738348356347,0.35161647,3339.9,3339.3,0.1704858]
[1738348356348,3.5161647,3339.6,3339.3,0.1704858]
[1738348356673,3.5161647,3339.6,3338.8,0.005]
[1738348356674,3.7609,3339.3,3338.8,0.005]
[1738348356874,3.5161647,3338.9,3338.8,0.005]
[1738348357041,3.5161647,3339.7,3338.8,0.005]
[1738348357446,0.22,3339.9,3338.9,0.7691]
[1738348357892,0.2156327,3339.6,3338.9,0.7691]
[1738348359491,3.5161647,3339.8,3338.9,0.7691]
[1738348359492,3.7317974,3339.8,3338.9,0.7691]
[1738348360296,0.2156327,3339.8,3338.9,0.7691]
[1738348361091,5.33586042,3340.2,3338.9,0.79904417]
[1738348361252,5.55586042,3340.2,3338.9,0.7691]
[1738348361453,0.55,3340.1,3338.9,0.7691]
[1738348361762,1.3369,3339.3,3338.8,0.005]
[1738348362089,3.5161647,3339.0,3338.8,0.005]
[1738348362263,0.77,3338.9,3338.8,0.005]
[1738348362467,3.76499,3338.9,3338.8,0.005]
[1738348362777,4.447967,3338.9,3338.2,0.01]
[1738348363009,2.99553,3338.3,3338.2,0.01]
[1738348364293,3.54553,3338.3,3338.2,0.01]
[1738348364790,2.99589,3337.9,3337.2,0.02996]
[1738348365918,4.32889,3337.9,3337.2,0.02996]
[1738348366098,4.88447604,3337.9,3337.2,0.02996]
[1738348367297,4.89947604,3337.9,3337.2,0.02996]
[1738348367501,4.88447604,3337.9,3337.2,0.02996]
[1738348367706,7.88447604,3337.9,3337.2,0.02996]
[1738348367864,3.77889,3337.9,3337.2,0.02996]
[1738348368201,3.21589,3337.9,3337.2,0.02996]
[1738348369720,3.76589,3337.9,3337.2,0.02996]
[1738348369880,3.21589,3337.9,3337.2,0.02996]
[1738348370263,3.76589,3337.9,3337.2,0.02996]
[1738348370463,4.55139,3337.9,3337.2,0.02996]
[1738348372886,4.55439,3337.9,3337.2,0.02996]
[1738348373178,4.56189,3337.9,3337.2,0.02996]
[1738348373382,2.99643,3337.3,3337.2,0.02996]
[1738348373637,7.1118697,3337.3,3337.2,0.02996]
[1738348373939,2.99632,3337.5,3337.2,0.85726]
[1738348374145,2.99643,3337.3,3337.2,0.85726]
[1738348374432,2.99635,3337.4,3337.2,0.85726]
[1738348374582,0.225,3337.9,3337.2,0.85726]
[1738348375024,2.99594,3337.9,3337.2,0.85726]
[1738348375228,2.99586,3338.0,3337.3,2.99634]
[1738348375444,2.99596,3337.9,3337.4,0.68552]
[1738348375739,6.7368847,3338.1,3337.3,2.99639]
[1738348375905,2.99581,3338.0,3337.3,2.99639]
[1738348376100,2.99533,3338.6,3337.5,2.99625]
[1738348376303,2.99544,3338.4,3337.8,0.8052]
[1738348376540,2.99531,3338.6,3337.9,2.99583]
[1738348376716,2.99543,3338.5,3337.9,0.380103]
[1738348376885,2.99543,3338.5,3337.8,0.8052]
[1738348377224,3.5161647,3338.9,3337.8,0.8052]
[1738348377225,2.99519,3338.7,3338.0,2.99579]
[1738348377420,2.99545,3338.4,3338.0,0.7866]
[1738348377729,2.9953,3338.6,3338.0,0.7866]